{"text_format":"3","workbook":"xlsx","n_sheets":1,"sheets":["Listă inventar"],"not_rendered":{"images":1,"defined_names":3},"read":"whole","date_system":"1900"}

{"sheet":"Listă inventar","index":0,"n_rows":28,"n_cols":13,"rows_kept":28}
[{"$nulls":12}," "]
[{"$nulls":10},"Evidențiați elementele care vor fi comandate din nou?","Da"]
[null,"Pentru comandă repetată","ID inventar","Nume","Descriere","Preț unitar","Cantitate în stoc","Valoarea inventar","Nivel comandă repetată","Timp în zile comandă repetată","Cantitate comandă repetată","Stoc indisponibil?"]
[null,{"$f":"IFERROR((Tabel_Listă_Inventar[[#This Row],[Cantitate în stoc]]<=Tabel_Listă_Inventar[[#This Row],[Nivel comandă repetată]])*(Tabel_Listă_Inventar[[#This Row],[Stoc indisponibil?]]=\"\")*valEvidențiată,0)","v":1},"IN0001","Articolul 1","Desc 1",{"v":51,"d":"51.00 lei"},25,{"$f":"Tabel_Listă_Inventar[[#This Row],[Preț unitar]]*Tabel_Listă_Inventar[[#This Row],[Cantitate în stoc]]","v":{"v":1275,"d":"1,275.00 lei"}},29,13,50]
[null,{"$f":"IFERROR((Tabel_Listă_Inventar[[#This Row],[Cantitate în stoc]]<=Tabel_Listă_Inventar[[#This Row],[Nivel comandă repetată]])*(Tabel_Listă_Inventar[[#This Row],[Stoc indisponibil?]]=\"\")*valEvidențiată,0)","v":1},"IN0002","Articolul 2","Desc 2",{"v":93,"d":"93.00 lei"},132,{"$f":"Tabel_Listă_Inventar[[#This Row],[Preț unitar]]*Tabel_Listă_Inventar[[#This Row],[Cantitate în stoc]]","v":{"v":12276,"d":"12,276.00 lei"}},231,4,50]
[null,{"$f":"IFERROR((Tabel_Listă_Inventar[[#This Row],[Cantitate în stoc]]<=Tabel_Listă_Inventar[[#This Row],[Nivel comandă repetată]])*(Tabel_Listă_Inventar[[#This Row],[Stoc indisponibil?]]=\"\")*valEvidențiată,0)","v":0},"IN0003","Articolul 3","Desc 3",{"v":57,"d":"57.00 lei"},151,{"$f":"Tabel_Listă_Inventar[[#This Row],[Preț unitar]]*Tabel_Listă_Inventar[[#This Row],[Cantitate în stoc]]","v":{"v":8607,"d":"8,607.00 lei"}},114,11,150]
[null,{"$f":"IFERROR((Tabel_Listă_Inventar[[#This Row],[Cantitate în stoc]]<=Tabel_Listă_Inventar[[#This Row],[Nivel comandă repetată]])*(Tabel_Listă_Inventar[[#This Row],[Stoc indisponibil?]]=\"\")*valEvidențiată,0)","v":0},"IN0004","Articolul 4","Desc 4",{"v":19,"d":"19.00 lei"},186,{"$f":"Tabel_Listă_Inventar[[#This Row],[Preț unitar]]*Tabel_Listă_Inventar[[#This Row],[Cantitate în stoc]]","v":{"v":3534,"d":"3,534.00 lei"}},158,6,50]
[null,{"$f":"IFERROR((Tabel_Listă_Inventar[[#This Row],[Cantitate în stoc]]<=Tabel_Listă_Inventar[[#This Row],[Nivel comandă repetată]])*(Tabel_Listă_Inventar[[#This Row],[Stoc indisponibil?]]=\"\")*valEvidențiată,0)","v":0},"IN0005","Articolul 5","Desc 5",{"v":75,"d":"75.00 lei"},62,{"$f":"Tabel_Listă_Inventar[[#This Row],[Preț unitar]]*Tabel_Listă_Inventar[[#This Row],[Cantitate în stoc]]","v":{"v":4650,"d":"4,650.00 lei"}},39,12,50]
[null,{"$f":"IFERROR((Tabel_Listă_Inventar[[#This Row],[Cantitate în stoc]]<=Tabel_Listă_Inventar[[#This Row],[Nivel comandă repetată]])*(Tabel_Listă_Inventar[[#This Row],[Stoc indisponibil?]]=\"\")*valEvidențiată,0)","v":1},"IN0006","Articolul 6","Desc 6",{"v":11,"d":"11.00 lei"},5,{"$f":"Tabel_Listă_Inventar[[#This Row],[Preț unitar]]*Tabel_Listă_Inventar[[#This Row],[Cantitate în stoc]]","v":{"v":55,"d":"55.00 lei"}},9,13,150]
[null,{"$f":"IFERROR((Tabel_Listă_Inventar[[#This Row],[Cantitate în stoc]]<=Tabel_Listă_Inventar[[#This Row],[Nivel comandă repetată]])*(Tabel_Listă_Inventar[[#This Row],[Stoc indisponibil?]]=\"\")*valEvidențiată,0)","v":0},"IN0007","Articolul 7","Desc 7",{"v":56,"d":"56.00 lei"},58,{"$f":"Tabel_Listă_Inventar[[#This Row],[Preț unitar]]*Tabel_Listă_Inventar[[#This Row],[Cantitate în stoc]]","v":{"v":3248,"d":"3,248.00 lei"}},109,7,100,"Da"]
[null,{"$f":"IFERROR((Tabel_Listă_Inventar[[#This Row],[Cantitate în stoc]]<=Tabel_Listă_Inventar[[#This Row],[Nivel comandă repetată]])*(Tabel_Listă_Inventar[[#This Row],[Stoc indisponibil?]]=\"\")*valEvidențiată,0)","v":1},"IN0008","Articolul 8","Desc 8",{"v":38,"d":"38.00 lei"},101,{"$f":"Tabel_Listă_Inventar[[#This Row],[Preț unitar]]*Tabel_Listă_Inventar[[#This Row],[Cantitate în stoc]]","v":{"v":3838,"d":"3,838.00 lei"}},162,3,100]
[null,{"$f":"IFERROR((Tabel_Listă_Inventar[[#This Row],[Cantitate în stoc]]<=Tabel_Listă_Inventar[[#This Row],[Nivel comandă repetată]])*(Tabel_Listă_Inventar[[#This Row],[Stoc indisponibil?]]=\"\")*valEvidențiată,0)","v":0},"IN0009","Articolul 9","Desc 9",{"v":59,"d":"59.00 lei"},122,{"$f":"Tabel_Listă_Inventar[[#This Row],[Preț unitar]]*Tabel_Listă_Inventar[[#This Row],[Cantitate în stoc]]","v":{"v":7198,"d":"7,198.00 lei"}},82,3,150]
[null,{"$f":"IFERROR((Tabel_Listă_Inventar[[#This Row],[Cantitate în stoc]]<=Tabel_Listă_Inventar[[#This Row],[Nivel comandă repetată]])*(Tabel_Listă_Inventar[[#This Row],[Stoc indisponibil?]]=\"\")*valEvidențiată,0)","v":1},"IN0010","Articolul 10","Desc 10",{"v":50,"d":"50.00 lei"},175,{"$f":"Tabel_Listă_Inventar[[#This Row],[Preț unitar]]*Tabel_Listă_Inventar[[#This Row],[Cantitate în stoc]]","v":{"v":8750,"d":"8,750.00 lei"}},283,8,150]
[null,{"$f":"IFERROR((Tabel_Listă_Inventar[[#This Row],[Cantitate în stoc]]<=Tabel_Listă_Inventar[[#This Row],[Nivel comandă repetată]])*(Tabel_Listă_Inventar[[#This Row],[Stoc indisponibil?]]=\"\")*valEvidențiată,0)","v":1},"IN0011","Articolul 11","Desc 11",{"v":59,"d":"59.00 lei"},176,{"$f":"Tabel_Listă_Inventar[[#This Row],[Preț unitar]]*Tabel_Listă_Inventar[[#This Row],[Cantitate în stoc]]","v":{"v":10384,"d":"10,384.00 lei"}},229,1,100]
[null,{"$f":"IFERROR((Tabel_Listă_Inventar[[#This Row],[Cantitate în stoc]]<=Tabel_Listă_Inventar[[#This Row],[Nivel comandă repetată]])*(Tabel_Listă_Inventar[[#This Row],[Stoc indisponibil?]]=\"\")*valEvidențiată,0)","v":1},"IN0012","Articolul 12","Desc 12",{"v":18,"d":"18.00 lei"},22,{"$f":"Tabel_Listă_Inventar[[#This Row],[Preț unitar]]*Tabel_Listă_Inventar[[#This Row],[Cantitate în stoc]]","v":{"v":396,"d":"396.00 lei"}},36,12,50]
[null,{"$f":"IFERROR((Tabel_Listă_Inventar[[#This Row],[Cantitate în stoc]]<=Tabel_Listă_Inventar[[#This Row],[Nivel comandă repetată]])*(Tabel_Listă_Inventar[[#This Row],[Stoc indisponibil?]]=\"\")*valEvidențiată,0)","v":1},"IN0013","Articolul 13","Desc 13",{"v":26,"d":"26.00 lei"},72,{"$f":"Tabel_Listă_Inventar[[#This Row],[Preț unitar]]*Tabel_Listă_Inventar[[#This Row],[Cantitate în stoc]]","v":{"v":1872,"d":"1,872.00 lei"}},102,9,100]
[null,{"$f":"IFERROR((Tabel_Listă_Inventar[[#This Row],[Cantitate în stoc]]<=Tabel_Listă_Inventar[[#This Row],[Nivel comandă repetată]])*(Tabel_Listă_Inventar[[#This Row],[Stoc indisponibil?]]=\"\")*valEvidențiată,0)","v":1},"IN0014","Articolul 14","Desc 14",{"v":42,"d":"42.00 lei"},62,{"$f":"Tabel_Listă_Inventar[[#This Row],[Preț unitar]]*Tabel_Listă_Inventar[[#This Row],[Cantitate în stoc]]","v":{"v":2604,"d":"2,604.00 lei"}},83,2,100]
[null,{"$f":"IFERROR((Tabel_Listă_Inventar[[#This Row],[Cantitate în stoc]]<=Tabel_Listă_Inventar[[#This Row],[Nivel comandă repetată]])*(Tabel_Listă_Inventar[[#This Row],[Stoc indisponibil?]]=\"\")*valEvidențiată,0)","v":0},"IN0015","Articolul 15","Desc 15",{"v":32,"d":"32.00 lei"},46,{"$f":"Tabel_Listă_Inventar[[#This Row],[Preț unitar]]*Tabel_Listă_Inventar[[#This Row],[Cantitate în stoc]]","v":{"v":1472,"d":"1,472.00 lei"}},23,15,50]
[null,{"$f":"IFERROR((Tabel_Listă_Inventar[[#This Row],[Cantitate în stoc]]<=Tabel_Listă_Inventar[[#This Row],[Nivel comandă repetată]])*(Tabel_Listă_Inventar[[#This Row],[Stoc indisponibil?]]=\"\")*valEvidențiată,0)","v":1},"IN0016","Articolul 16","Desc 16",{"v":90,"d":"90.00 lei"},96,{"$f":"Tabel_Listă_Inventar[[#This Row],[Preț unitar]]*Tabel_Listă_Inventar[[#This Row],[Cantitate în stoc]]","v":{"v":8640,"d":"8,640.00 lei"}},180,3,50]
[null,{"$f":"IFERROR((Tabel_Listă_Inventar[[#This Row],[Cantitate în stoc]]<=Tabel_Listă_Inventar[[#This Row],[Nivel comandă repetată]])*(Tabel_Listă_Inventar[[#This Row],[Stoc indisponibil?]]=\"\")*valEvidențiată,0)","v":0},"IN0017","Articolul 17","Desc 17",{"v":97,"d":"97.00 lei"},57,{"$f":"Tabel_Listă_Inventar[[#This Row],[Preț unitar]]*Tabel_Listă_Inventar[[#This Row],[Cantitate în stoc]]","v":{"v":5529,"d":"5,529.00 lei"}},98,12,50,"Da"]
[null,{"$f":"IFERROR((Tabel_Listă_Inventar[[#This Row],[Cantitate în stoc]]<=Tabel_Listă_Inventar[[#This Row],[Nivel comandă repetată]])*(Tabel_Listă_Inventar[[#This Row],[Stoc indisponibil?]]=\"\")*valEvidențiată,0)","v":1},"IN0018","Articolul 18","Desc 18",{"v":12,"d":"12.00 lei"},6,{"$f":"Tabel_Listă_Inventar[[#This Row],[Preț unitar]]*Tabel_Listă_Inventar[[#This Row],[Cantitate în stoc]]","v":{"v":72,"d":"72.00 lei"}},7,13,50]
[null,{"$f":"IFERROR((Tabel_Listă_Inventar[[#This Row],[Cantitate în stoc]]<=Tabel_Listă_Inventar[[#This Row],[Nivel comandă repetată]])*(Tabel_Listă_Inventar[[#This Row],[Stoc indisponibil?]]=\"\")*valEvidențiată,0)","v":1},"IN0019","Articolul 19","Desc 19",{"v":82,"d":"82.00 lei"},143,{"$f":"Tabel_Listă_Inventar[[#This Row],[Preț unitar]]*Tabel_Listă_Inventar[[#This Row],[Cantitate în stoc]]","v":{"v":11726,"d":"11,726.00 lei"}},164,12,150]
[null,{"$f":"IFERROR((Tabel_Listă_Inventar[[#This Row],[Cantitate în stoc]]<=Tabel_Listă_Inventar[[#This Row],[Nivel comandă repetată]])*(Tabel_Listă_Inventar[[#This Row],[Stoc indisponibil?]]=\"\")*valEvidențiată,0)","v":0},"IN0020","Articolul 20","Desc 20",{"v":16,"d":"16.00 lei"},124,{"$f":"Tabel_Listă_Inventar[[#This Row],[Preț unitar]]*Tabel_Listă_Inventar[[#This Row],[Cantitate în stoc]]","v":{"v":1984,"d":"1,984.00 lei"}},113,14,50]
[null,{"$f":"IFERROR((Tabel_Listă_Inventar[[#This Row],[Cantitate în stoc]]<=Tabel_Listă_Inventar[[#This Row],[Nivel comandă repetată]])*(Tabel_Listă_Inventar[[#This Row],[Stoc indisponibil?]]=\"\")*valEvidențiată,0)","v":0},"IN0021","Articolul 21","Desc 21",{"v":19,"d":"19.00 lei"},112,{"$f":"Tabel_Listă_Inventar[[#This Row],[Preț unitar]]*Tabel_Listă_Inventar[[#This Row],[Cantitate în stoc]]","v":{"v":2128,"d":"2,128.00 lei"}},75,11,50]
[null,{"$f":"IFERROR((Tabel_Listă_Inventar[[#This Row],[Cantitate în stoc]]<=Tabel_Listă_Inventar[[#This Row],[Nivel comandă repetată]])*(Tabel_Listă_Inventar[[#This Row],[Stoc indisponibil?]]=\"\")*valEvidențiată,0)","v":0},"IN0022","Articolul 22","Desc 22",{"v":24,"d":"24.00 lei"},182,{"$f":"Tabel_Listă_Inventar[[#This Row],[Preț unitar]]*Tabel_Listă_Inventar[[#This Row],[Cantitate în stoc]]","v":{"v":4368,"d":"4,368.00 lei"}},132,15,150]
[null,{"$f":"IFERROR((Tabel_Listă_Inventar[[#This Row],[Cantitate în stoc]]<=Tabel_Listă_Inventar[[#This Row],[Nivel comandă repetată]])*(Tabel_Listă_Inventar[[#This Row],[Stoc indisponibil?]]=\"\")*valEvidențiată,0)","v":0},"IN0023","Articolul 23","Desc 23",{"v":29,"d":"29.00 lei"},106,{"$f":"Tabel_Listă_Inventar[[#This Row],[Preț unitar]]*Tabel_Listă_Inventar[[#This Row],[Cantitate în stoc]]","v":{"v":3074,"d":"3,074.00 lei"}},142,1,150,"Da"]
[null,{"$f":"IFERROR((Tabel_Listă_Inventar[[#This Row],[Cantitate în stoc]]<=Tabel_Listă_Inventar[[#This Row],[Nivel comandă repetată]])*(Tabel_Listă_Inventar[[#This Row],[Stoc indisponibil?]]=\"\")*valEvidențiată,0)","v":0},"IN0024","Articolul 24","Desc 24",{"v":75,"d":"75.00 lei"},173,{"$f":"Tabel_Listă_Inventar[[#This Row],[Preț unitar]]*Tabel_Listă_Inventar[[#This Row],[Cantitate în stoc]]","v":{"v":12975,"d":"12,975.00 lei"}},127,9,100]
[null,{"$f":"IFERROR((Tabel_Listă_Inventar[[#This Row],[Cantitate în stoc]]<=Tabel_Listă_Inventar[[#This Row],[Nivel comandă repetată]])*(Tabel_Listă_Inventar[[#This Row],[Stoc indisponibil?]]=\"\")*valEvidențiată,0)","v":0},"IN0025","Articolul 25","Desc 25",{"v":14,"d":"14.00 lei"},28,{"$f":"Tabel_Listă_Inventar[[#This Row],[Preț unitar]]*Tabel_Listă_Inventar[[#This Row],[Cantitate în stoc]]","v":{"v":392,"d":"392.00 lei"}},21,8,50]